[Event "Late-Titled-Tuesday-Blitz-October-10-2023"]
[Site "Chess.com"]
[Date "2023.10.10"]
[Round "11"]
[White "RIPOL"]
[Black "wild3000"]
[Result "1/2-1/2"]
[WhiteElo "2426"]
[BlackElo "2320"]
[TimeControl "180+1"]
[EndTime "16:01:15 PDT"]
[Termination "Game drawn by repetition"]

1. d4 {[%clk 0:02:59.6]} 1... g6 {[%clk 0:00:44.4]} 2. e4 {[%clk 0:02:58]} 2...
Bg7 {[%clk 0:00:45.3]} 3. c3 {[%clk 0:02:57.2]} 3... d6 {[%clk 0:00:46.2]} 4.
Bd3 {[%clk 0:02:57]} 4... a6 {[%clk 0:00:47.1]} 5. f4 {[%clk 0:02:53.3]} 5... b5
{[%clk 0:00:47.2]} 6. Nf3 {[%clk 0:02:52.6]} 6... Bb7 {[%clk 0:00:47.5]} 7. O-O
{[%clk 0:02:51.8]} 7... Nd7 {[%clk 0:00:47.8]} 8. Nbd2 {[%clk 0:02:50.4]} 8...
Ngf6 {[%clk 0:00:46.5]} 9. Qe2 {[%clk 0:02:49.6]} 9... O-O {[%clk 0:00:46]} 10.
a4 {[%clk 0:02:49]} 10... bxa4 {[%clk 0:00:45.6]} 11. Rxa4 {[%clk 0:02:48.1]}
11... c5 {[%clk 0:00:46.5]} 12. Kh1 {[%clk 0:02:38.2]} 12... cxd4 {[%clk
0:00:46.1]} 13. cxd4 {[%clk 0:02:37.6]} 13... a5 {[%clk 0:00:43.9]} 14. b3
{[%clk 0:02:23]} 14... Nb6 {[%clk 0:00:44]} 15. Ra2 {[%clk 0:02:21.9]} 15... a4
{[%clk 0:00:43.9]} 16. bxa4 {[%clk 0:02:20.8]} 16... Nxa4 {[%clk 0:00:44.1]} 17.
Qe3 {[%clk 0:02:07.5]} 17... Nc3 {[%clk 0:00:39.4]} 18. Rxa8 {[%clk 0:02:05.9]}
18... Qxa8 {[%clk 0:00:39]} 19. d5 {[%clk 0:01:51.3]} 19... Ng4 {[%clk
0:00:37.2]} 20. Qg1 {[%clk 0:01:45.6]} 20... h5 {[%clk 0:00:31.3]} 21. h3 {[%clk
0:01:44.8]} 21... Nf6 {[%clk 0:00:31.3]} 22. Bb2 {[%clk 0:01:36.2]} 22... Rc8
{[%clk 0:00:30.5]} 23. Rc1 {[%clk 0:01:33.2]} 23... Na4 {[%clk 0:00:30]} 24. Bd4
{[%clk 0:01:29.6]} 24... Nd7 {[%clk 0:00:26.6]} 25. Bxg7 {[%clk 0:01:28.1]}
25... Kxg7 {[%clk 0:00:26.9]} 26. Qd4+ {[%clk 0:01:28.2]} 26... Kg8 {[%clk
0:00:26.2]} 27. Rxc8+ {[%clk 0:01:26.2]} 27... Bxc8 {[%clk 0:00:27.1]} 28. e5
{[%clk 0:01:24.9]} 28... dxe5 {[%clk 0:00:24.5]} 29. fxe5 {[%clk 0:01:24.1]}
29... Nac5 {[%clk 0:00:23.9]} 30. e6 {[%clk 0:01:22.4]} 30... fxe6 {[%clk
0:00:19]} 31. dxe6 {[%clk 0:01:09.6]} 31... Nxe6 {[%clk 0:00:19.3]} 32. Qc4
{[%clk 0:01:09.7]} 32... Nb6 {[%clk 0:00:18.3]} 33. Qb3 {[%clk 0:01:06.9]} 33...
Qa1+ {[%clk 0:00:17.5]} 34. Kh2 {[%clk 0:01:06.6]} 34... Qa5 {[%clk 0:00:14.3]}
35. Bxg6 {[%clk 0:01:02.9]} 35... Kf8 {[%clk 0:00:14.5]} 36. Qb2 {[%clk
0:01:01.2]} 36... Ng7 {[%clk 0:00:13.6]} 37. Qd4 {[%clk 0:00:52.2]} 37... Nd5
{[%clk 0:00:11.1]} 38. Qe5 {[%clk 0:00:44.4]} 38... Qc7 {[%clk 0:00:10.7]} 39.
Ne4 {[%clk 0:00:40.9]} 39... Qxe5+ {[%clk 0:00:10.7]} 40. Nxe5 {[%clk
0:00:41.1]} 40... Nf6 {[%clk 0:00:10.6]} 41. Nc5 {[%clk 0:00:38.7]} 41... Bf5
{[%clk 0:00:09.4]} 42. Kg3 {[%clk 0:00:33.9]} 42... Bxg6 {[%clk 0:00:09.3]} 43.
Nxg6+ {[%clk 0:00:34.1]} 43... Kf7 {[%clk 0:00:10.2]} 44. Nf4 {[%clk 0:00:33.9]}
44... e5 {[%clk 0:00:09.5]} 45. Ne2 {[%clk 0:00:32.7]} 45... Nf5+ {[%clk
0:00:09.8]} 46. Kf2 {[%clk 0:00:32]} 46... Kg6 {[%clk 0:00:09.9]} 47. Nc3 {[%clk
0:00:31.8]} 47... Kg5 {[%clk 0:00:08.8]} 48. g3 {[%clk 0:00:31.4]} 48... h4
{[%clk 0:00:08.2]} 49. gxh4+ {[%clk 0:00:31.1]} 49... Nxh4 {[%clk 0:00:08.1]}
50. N5e4+ {[%clk 0:00:30.8]} 50... Nxe4+ {[%clk 0:00:08]} 51. Nxe4+ {[%clk
0:00:30.5]} 51... Kf4 {[%clk 0:00:08.9]} 52. Nd6 {[%clk 0:00:29]} 52... e4
{[%clk 0:00:08.8]} 53. Nxe4 {[%clk 0:00:28.8]} 53... Kxe4 {[%clk 0:00:08.9]} 54.
Kg3 {[%clk 0:00:28]} 54... Nf5+ {[%clk 0:00:09.8]} 55. Kg4 {[%clk 0:00:27.6]}
55... Ke5 {[%clk 0:00:10]} 56. Kg5 {[%clk 0:00:27.4]} 56... Ke6 {[%clk 0:00:10]}
57. Kg6 {[%clk 0:00:26.6]} 57... Ke5 {[%clk 0:00:10.2]} 58. Kg5 {[%clk
0:00:26.6]} 58... Ke6 {[%clk 0:00:10.5]} 59. Kg6 {[%clk 0:00:27]} 59... Ke5
{[%clk 0:00:10.7]} 60. Kg5 {[%clk 0:00:27.4]} 1/2-1/2

[Event "Late-Titled-Tuesday-Blitz-October-10-2023"]
[Site "Chess.com"]
[Date "2023.10.10"]
[Round "11"]
[White "FairChess_on_YouTube"]
[Black "Jospem"]
[Result "0-1"]
[WhiteElo "3090"]
[BlackElo "3147"]
[TimeControl "180+1"]
[EndTime "16:01:16 PDT"]
[Termination "Jospem won by checkmate"]

1. Nf3 {[%clk 0:03:00.9]} 1... c5 {[%clk 0:03:00.4]} 2. c4 {[%clk 0:03:00.6]}
2... Nc6 {[%clk 0:03:01.1]} 3. g3 {[%clk 0:03:00.5]} 3... g6 {[%clk 0:03:01.5]}
4. Bg2 {[%clk 0:03:00]} 4... Bg7 {[%clk 0:03:02.2]} 5. O-O {[%clk 0:03:00.3]}
5... d6 {[%clk 0:03:02.9]} 6. Nc3 {[%clk 0:02:56.1]} 6... e6 {[%clk 0:03:03.4]}
7. e3 {[%clk 0:02:55.2]} 7... Nge7 {[%clk 0:03:03.8]} 8. d4 {[%clk 0:02:55.3]}
8... O-O {[%clk 0:03:04.5]} 9. b3 {[%clk 0:02:54.5]} 9... cxd4 {[%clk
0:02:56.3]} 10. Nxd4 {[%clk 0:02:50.3]} 10... d5 {[%clk 0:02:57.2]} 11. Ba3
{[%clk 0:02:32.6]} 11... Re8 {[%clk 0:02:33.6]} 12. Ncb5 {[%clk 0:02:21.6]}
12... Nxd4 {[%clk 0:02:33.1]} 13. exd4 {[%clk 0:02:20.5]} 13... Nf5 {[%clk
0:02:33.8]} 14. cxd5 {[%clk 0:02:08.2]} 14... exd5 {[%clk 0:02:20.7]} 15. Rc1
{[%clk 0:02:06.3]} 15... Bf8 {[%clk 0:01:38.5]} 16. Bxf8 {[%clk 0:01:29.9]}
16... Rxf8 {[%clk 0:01:39.4]} 17. Re1 {[%clk 0:01:29.5]} 17... Rb8 {[%clk
0:01:11.5]} 18. Qd2 {[%clk 0:01:15.9]} 18... a6 {[%clk 0:00:59.4]} 19. Qf4
{[%clk 0:01:08.2]} 19... Be6 {[%clk 0:00:56.3]} 20. Nc7 {[%clk 0:01:07.8]} 20...
Rc8 {[%clk 0:00:46.9]} 21. Nxe6 {[%clk 0:00:45.5]} 21... fxe6 {[%clk 0:00:46.2]}
22. Bh3 {[%clk 0:00:28.9]} 22... Rxc1 {[%clk 0:00:45.5]} 23. Rxc1 {[%clk
0:00:27.3]} 23... Qf6 {[%clk 0:00:15]} 24. Bxf5 {[%clk 0:00:23.9]} 24... Qxf5
{[%clk 0:00:15.9]} 25. Qe3 {[%clk 0:00:22.2]} 25... Rf7 {[%clk 0:00:13.9]} 26.
h4 {[%clk 0:00:19.7]} 26... Kg7 {[%clk 0:00:13.8]} 27. f4 {[%clk 0:00:19.1]}
27... h6 {[%clk 0:00:13.4]} 28. Re1 {[%clk 0:00:15]} 28... Re7 {[%clk
0:00:12.4]} 29. Kg2 {[%clk 0:00:13]} 29... h5 {[%clk 0:00:12]} 30. Rc1 {[%clk
0:00:11.8]} 30... Kf7 {[%clk 0:00:12.3]} 31. Kf2 {[%clk 0:00:11.6]} 31... Qh3
{[%clk 0:00:11.7]} 32. Kf3 {[%clk 0:00:08.3]} 32... Qg4+ {[%clk 0:00:11.8]} 33.
Kg2 {[%clk 0:00:08.1]} 33... Qf5 {[%clk 0:00:12.5]} 34. a4 {[%clk 0:00:07.6]}
34... a5 {[%clk 0:00:07.5]} 35. Rc5 {[%clk 0:00:07.1]} 35... b6 {[%clk
0:00:08.1]} 36. Rc6 {[%clk 0:00:07.4]} 36... Qb1 {[%clk 0:00:07.1]} 37. Rxb6
{[%clk 0:00:05.8]} 37... Qc2+ {[%clk 0:00:06.6]} 38. Kf3 {[%clk 0:00:05.6]}
38... Qd1+ {[%clk 0:00:06.7]} 39. Kf2 {[%clk 0:00:05.8]} 39... Qc2+ {[%clk
0:00:07.2]} 40. Qe2 {[%clk 0:00:05.9]} 40... Qc3 {[%clk 0:00:07.7]} 41. Qd1
{[%clk 0:00:04.5]} 41... Rc7 {[%clk 0:00:06.8]} 42. Kg2 {[%clk 0:00:03]} 42...
Qb2+ {[%clk 0:00:06.4]} 43. Kh3 {[%clk 0:00:03.7]} 43... Rc2 {[%clk 0:00:03.3]}
44. Qg1 {[%clk 0:00:04]} 44... Rf2 {[%clk 0:00:03.1]} 45. Rb7+ {[%clk
0:00:02.2]} 45... Kf6 {[%clk 0:00:03.7]} 46. Rb8 {[%clk 0:00:02.8]} 46... Qe2
{[%clk 0:00:03.9]} 47. Rf8+ {[%clk 0:00:02.7]} 47... Kg7 {[%clk 0:00:04.4]} 48.
Re8 {[%clk 0:00:02.9]} 48... Qg4# {[%clk 0:00:04.9]} 0-1

[Event "Late-Titled-Tuesday-Blitz-October-10-2023"]
[Site "Chess.com"]
[Date "2023.10.10"]
[Round "11"]
[White "luizzy"]
[Black "Levanzovsky"]
[Result "1-0"]
[WhiteElo "2573"]
[BlackElo "2450"]
[TimeControl "180+1"]
[EndTime "16:01:20 PDT"]
[Termination "luizzy won by resignation"]

1. b3 {[%clk 0:03:00.9]} 1... b6 {[%clk 0:02:57.5]} 2. Bb2 {[%clk 0:03:01.2]}
2... Bb7 {[%clk 0:02:55.6]} 3. e3 {[%clk 0:03:01.7]} 3... e6 {[%clk 0:02:54.7]}
4. Nf3 {[%clk 0:03:02.2]} 4... Nf6 {[%clk 0:02:55.3]} 5. d4 {[%clk 0:03:02.5]}
5... d5 {[%clk 0:02:55.8]} 6. Bd3 {[%clk 0:03:02.9]} 6... Bd6 {[%clk 0:02:53.4]}
7. O-O {[%clk 0:03:03.3]} 7... O-O {[%clk 0:02:52]} 8. Nbd2 {[%clk 0:03:03.9]}
8... Nbd7 {[%clk 0:02:51.3]} 9. c4 {[%clk 0:02:58.1]} 9... Ne4 {[%clk
0:02:51.7]} 10. Qc2 {[%clk 0:02:49.4]} 10... f5 {[%clk 0:02:41.3]} 11. Ne5
{[%clk 0:02:41.8]} 11... Bxe5 {[%clk 0:02:39.7]} 12. dxe5 {[%clk 0:02:41.5]}
12... Ndc5 {[%clk 0:02:40.6]} 13. Rad1 {[%clk 0:02:05.4]} 13... Nxd3 {[%clk
0:02:39.1]} 14. Qxd3 {[%clk 0:02:05.3]} 14... Qe7 {[%clk 0:02:33.7]} 15. cxd5
{[%clk 0:01:57.6]} 15... Bxd5 {[%clk 0:02:29]} 16. Nxe4 {[%clk 0:01:49.9]} 16...
Bxe4 {[%clk 0:02:28.4]} 17. Qc4 {[%clk 0:01:48.6]} 17... Rfd8 {[%clk 0:02:20.4]}
18. f3 {[%clk 0:01:42]} 18... Bb7 {[%clk 0:02:19.2]} 19. Rd4 {[%clk 0:01:27.6]}
19... c5 {[%clk 0:02:15.7]} 20. Rdd1 {[%clk 0:01:15.6]} 20... Rxd1 {[%clk
0:02:14.8]} 21. Rxd1 {[%clk 0:01:15.5]} 21... Rd8 {[%clk 0:02:15.7]} 22. Qe2
{[%clk 0:01:12.8]} 22... Rd5 {[%clk 0:02:07.6]} 23. Rxd5 {[%clk 0:01:09.3]}
23... Bxd5 {[%clk 0:02:08.5]} 24. Qa6 {[%clk 0:01:05.2]} 24... Qd7 {[%clk
0:02:00.9]} 25. Bc3 {[%clk 0:01:01.8]} 25... Bc6 {[%clk 0:01:55.8]} 26. Qe2
{[%clk 0:01:00.9]} 26... Kf7 {[%clk 0:01:54]} 27. Qd2 {[%clk 0:01:00.5]} 27...
Qxd2 {[%clk 0:01:50.5]} 28. Bxd2 {[%clk 0:01:01.4]} 28... Ke7 {[%clk 0:01:50.3]}
29. Kf2 {[%clk 0:00:59.2]} 29... Bb5 {[%clk 0:01:49.7]} 30. h4 {[%clk
0:00:53.5]} 30... Bd3 {[%clk 0:01:46.7]} 31. a3 {[%clk 0:00:53]} 31... Kd7
{[%clk 0:01:46.4]} 32. Bc3 {[%clk 0:00:49.8]} 32... Kc6 {[%clk 0:01:46]} 33. Ke1
{[%clk 0:00:45.6]} 33... Bc2 {[%clk 0:01:43.7]} 34. b4 {[%clk 0:00:45.1]} 34...
Kb5 {[%clk 0:01:39.1]} 35. Kd2 {[%clk 0:00:42.4]} 35... Bb3 {[%clk 0:01:37.9]}
36. bxc5 {[%clk 0:00:28.4]} 36... bxc5 {[%clk 0:01:38.1]} 37. Bb2 {[%clk
0:00:26.1]} 37... Kc4 {[%clk 0:01:36.7]} 38. Bc3 {[%clk 0:00:24.5]} 38... Ba4
{[%clk 0:01:37.2]} 39. Ba5 {[%clk 0:00:24.5]} 39... Bc6 {[%clk 0:01:34.7]} 40.
Bc7 {[%clk 0:00:22.1]} 40... Kb3 {[%clk 0:01:34.3]} 41. Bd6 {[%clk 0:00:20.4]}
41... Kxa3 {[%clk 0:01:34.3]} 42. Bxc5+ {[%clk 0:00:20.6]} 42... Kb3 {[%clk
0:01:33.2]} 43. Bxa7 {[%clk 0:00:21.5]} 43... Kc4 {[%clk 0:01:31.2]} 44. Bb6
{[%clk 0:00:20.4]} 44... Kd5 {[%clk 0:01:20.8]} 45. Bc7 {[%clk 0:00:19.8]} 45...
Bb5 {[%clk 0:01:19.1]} 46. Ke1 {[%clk 0:00:19.8]} 46... Kc4 {[%clk 0:01:11.3]}
47. Kf2 {[%clk 0:00:19.5]} 47... Kd3 {[%clk 0:01:12]} 48. Bb6 {[%clk 0:00:19.4]}
48... Bc6 {[%clk 0:01:11.7]} 49. Kg3 {[%clk 0:00:19.5]} 49... Kc4 {[%clk
0:01:02]} 50. Kf4 {[%clk 0:00:19.7]} 50... Be8 {[%clk 0:01:00.4]} 51. Bc7 {[%clk
0:00:17.6]} 51... Kd5 {[%clk 0:01:00.7]} 52. Bd6 {[%clk 0:00:17.6]} 52... Kc6
{[%clk 0:01:00.3]} 53. Bf8 {[%clk 0:00:17.8]} 53... g6 {[%clk 0:00:53.2]} 54.
Kg5 {[%clk 0:00:18.1]} 54... Kd5 {[%clk 0:00:54.1]} 55. Bd6 {[%clk 0:00:14.2]}
55... Bb5 {[%clk 0:00:55]} 56. Kh6 {[%clk 0:00:11.5]} 56... Bf1 {[%clk
0:00:55.9]} 57. g3 {[%clk 0:00:10]} 57... Be2 {[%clk 0:00:56.3]} 58. Kxh7 {[%clk
0:00:10.4]} 58... Bxf3 {[%clk 0:00:53.4]} 59. Kxg6 {[%clk 0:00:11]} 59... Ke4
{[%clk 0:00:54.3]} 60. h5 {[%clk 0:00:08.1]} 60... Bxh5+ {[%clk 0:00:54.7]} 61.
Kxh5 {[%clk 0:00:09]} 61... Kf3 {[%clk 0:00:55.4]} 62. Kh4 {[%clk 0:00:06]}
62... Kxe3 {[%clk 0:00:56.3]} 63. Be7 {[%clk 0:00:05.8]} 63... Ke4 {[%clk
0:00:55.9]} 64. Bf6 {[%clk 0:00:04]} 64... Kf3 {[%clk 0:00:56.8]} 65. Bg5 {[%clk
0:00:03.5]} 65... Ke4 {[%clk 0:00:57.7]} 66. Bf4 {[%clk 0:00:04.4]} 66... Kf3
{[%clk 0:00:58.4]} 67. Kg5 {[%clk 0:00:05.1]} 67... Ke4 {[%clk 0:00:58.8]} 68.
Kf6 {[%clk 0:00:06]} 68... Kd5 {[%clk 0:00:59.5]} 69. Ke7 {[%clk 0:00:06.7]}
69... Kc6 {[%clk 0:01:00.3]} 70. Kxe6 {[%clk 0:00:07.6]} 70... Kc7 {[%clk
0:01:00.4]} 71. Kxf5 {[%clk 0:00:08.5]} 71... Kd8 {[%clk 0:01:01.2]} 72. Ke6
{[%clk 0:00:08.8]} 72... Ke8 {[%clk 0:01:02.1]} 73. g4 {[%clk 0:00:07.8]} 73...
Kf8 {[%clk 0:01:03]} 1-0

[Event "Late-Titled-Tuesday-Blitz-October-10-2023"]
[Site "Chess.com"]
[Date "2023.10.10"]
[Round "11"]
[White "Atanejhad"]
[Black "sergeikim"]
[Result "0-1"]
[WhiteElo "2388"]
[BlackElo "2572"]
[TimeControl "180+1"]
[EndTime "16:01:20 PDT"]
[Termination "sergeikim won on time"]

1. d4 {[%clk 0:03:00.9]} 1... Nf6 {[%clk 0:02:59.9]} 2. c4 {[%clk 0:02:59.4]}
2... g6 {[%clk 0:02:59.9]} 3. Nc3 {[%clk 0:02:59.6]} 3... Bg7 {[%clk 0:03:00.2]}
4. e4 {[%clk 0:02:58.9]} 4... d6 {[%clk 0:03:00.6]} 5. f3 {[%clk 0:02:59.5]}
5... O-O {[%clk 0:03:00.8]} 6. Be3 {[%clk 0:03:00.1]} 6... Nc6 {[%clk
0:03:00.6]} 7. Nge2 {[%clk 0:02:59.4]} 7... a6 {[%clk 0:03:00.4]} 8. Qd2 {[%clk
0:02:59]} 8... Rb8 {[%clk 0:02:59.5]} 9. Rc1 {[%clk 0:02:57.7]} 9... e5 {[%clk
0:02:58.8]} 10. d5 {[%clk 0:02:56.9]} 10... Ne7 {[%clk 0:02:59.4]} 11. c5 {[%clk
0:02:57]} 11... Nd7 {[%clk 0:02:57.8]} 12. b4 {[%clk 0:02:55]} 12... f5 {[%clk
0:02:56.5]} 13. a4 {[%clk 0:02:51.6]} 13... Nf6 {[%clk 0:02:53.9]} 14. h3 {[%clk
0:02:27.1]} 14... f4 {[%clk 0:02:28.6]} 15. Bf2 {[%clk 0:02:25.8]} 15... Nh5
{[%clk 0:02:29.1]} 16. b5 {[%clk 0:02:23.6]} 16... Bd7 {[%clk 0:02:24.1]} 17. b6
{[%clk 0:02:02]} 17... cxb6 {[%clk 0:02:15.2]} 18. cxd6 {[%clk 0:02:01.4]} 18...
Nc8 {[%clk 0:02:15.2]} 19. Rb1 {[%clk 0:01:54.6]} 19... Nxd6 {[%clk 0:01:55.3]}
20. Bxb6 {[%clk 0:01:50.1]} 20... Qh4+ {[%clk 0:01:44.6]} 21. Bf2 {[%clk
0:01:48.8]} 21... Qe7 {[%clk 0:01:37.9]} 22. Nc1 {[%clk 0:01:46.9]} 22... Rfc8
{[%clk 0:01:31]} 23. Nb3 {[%clk 0:01:38.5]} 23... Ng3 {[%clk 0:01:25]} 24. Rg1
{[%clk 0:01:34.4]} 24... Nxf1 {[%clk 0:01:14.8]} 25. Rxf1 {[%clk 0:01:29.3]}
25... Nc4 {[%clk 0:01:14.2]} 26. Qd3 {[%clk 0:01:23.4]} 26... b5 {[%clk
0:01:09.8]} 27. axb5 {[%clk 0:01:20.7]} 27... axb5 {[%clk 0:01:09]} 28. d6
{[%clk 0:01:17]} 28... Qg5 {[%clk 0:01:01.9]} 29. Nd5 {[%clk 0:01:09.2]} 29...
Kh8 {[%clk 0:00:50.2]} 30. Nc5 {[%clk 0:01:04.8]} 30... Rd8 {[%clk 0:00:46.3]}
31. Nxd7 {[%clk 0:00:43.5]} 31... Rxd7 {[%clk 0:00:46.5]} 32. Qxc4 {[%clk
0:00:42.9]} 32... bxc4 {[%clk 0:00:46.8]} 33. Rxb8+ {[%clk 0:00:40.2]} 33... Bf8
{[%clk 0:00:47.4]} 34. Rxf8+ {[%clk 0:00:19.1]} 34... Kg7 {[%clk 0:00:47]} 35.
Re8 {[%clk 0:00:11.3]} 35... Rxd6 {[%clk 0:00:42.8]} 36. Ke2 {[%clk 0:00:09.6]}
36... Ra6 {[%clk 0:00:37.8]} 37. Rd1 {[%clk 0:00:10]} 37... Ra2+ {[%clk
0:00:36]} 38. Rd2 {[%clk 0:00:09.8]} 38... Rxd2+ {[%clk 0:00:35.8]} 39. Kxd2
{[%clk 0:00:10.7]} 39... Qxg2 {[%clk 0:00:35.7]} 40. Ke2 {[%clk 0:00:11.2]}
40... Qxh3 {[%clk 0:00:31.7]} 41. Rxe5 {[%clk 0:00:11]} 41... Qc8 {[%clk
0:00:20.7]} 42. Re7+ {[%clk 0:00:08.9]} 42... Kh6 {[%clk 0:00:19.8]} 43. Rc7
{[%clk 0:00:09.4]} 43... Qa6 {[%clk 0:00:19.3]} 44. Be1 {[%clk 0:00:08.4]} 44...
c3+ {[%clk 0:00:18.8]} 45. Kf2 {[%clk 0:00:06.9]} 45... Qa2+ {[%clk 0:00:18.5]}
46. Kf1 {[%clk 0:00:05.9]} 46... c2 {[%clk 0:00:18.1]} 47. Bd2 {[%clk
0:00:04.7]} 47... g5 {[%clk 0:00:14.6]} 48. Ke2 {[%clk 0:00:03.6]} 48... Qa6+
{[%clk 0:00:13.3]} 49. Ke1 {[%clk 0:00:02.3]} 49... Qa1+ {[%clk 0:00:12.7]} 50.
Kf2 {[%clk 0:00:01.5]} 50... Qd1 {[%clk 0:00:12.7]} 0-1

[Event "Late-Titled-Tuesday-Blitz-October-10-2023"]
[Site "Chess.com"]
[Date "2023.10.10"]
[Round "11"]
[White "FaustinoOro"]
[Black "Djager97"]
[Result "1-0"]
[WhiteElo "2846"]
[BlackElo "2625"]
[TimeControl "180+1"]
[EndTime "16:01:24 PDT"]
[Termination "FaustinoOro won on time"]

1. e4 {[%clk 0:03:00.9]} 1... e5 {[%clk 0:02:56.6]} 2. Nf3 {[%clk 0:03:00.9]}
2... Nc6 {[%clk 0:02:56.3]} 3. Bb5 {[%clk 0:02:58.4]} 3... a6 {[%clk 0:02:56.1]}
4. Bxc6 {[%clk 0:02:58.4]} 4... dxc6 {[%clk 0:02:57]} 5. O-O {[%clk 0:02:59]}
5... Bd6 {[%clk 0:02:56.4]} 6. d4 {[%clk 0:02:58.7]} 6... exd4 {[%clk
0:02:57.3]} 7. Qxd4 {[%clk 0:02:59.4]} 7... f6 {[%clk 0:02:56.8]} 8. Be3 {[%clk
0:02:58.5]} 8... Ne7 {[%clk 0:02:56.7]} 9. Nbd2 {[%clk 0:02:58.3]} 9... Be6
{[%clk 0:02:56.5]} 10. Nc4 {[%clk 0:02:58.3]} 10... Bxh2+ {[%clk 0:02:56.4]} 11.
Kxh2 {[%clk 0:02:52]} 11... Qxd4 {[%clk 0:02:57.3]} 12. Nxd4 {[%clk 0:02:50.7]}
12... Bxc4 {[%clk 0:02:58.2]} 13. Rfd1 {[%clk 0:02:51.1]} 13... O-O-O {[%clk
0:02:57.2]} 14. f3 {[%clk 0:02:46.2]} 14... c5 {[%clk 0:02:52.9]} 15. Nb3 {[%clk
0:02:41.5]} 15... b6 {[%clk 0:02:51.2]} 16. Nd2 {[%clk 0:02:40.5]} 16... Be6
{[%clk 0:02:50.3]} 17. Kg3 {[%clk 0:02:34.3]} 17... f5 {[%clk 0:02:49.5]} 18.
Kf2 {[%clk 0:02:28.6]} 18... Rd7 {[%clk 0:02:45.8]} 19. Rh1 {[%clk 0:02:20.3]}
19... h6 {[%clk 0:02:32.1]} 20. Rae1 {[%clk 0:02:07.5]} 20... Rhd8 {[%clk
0:02:30.7]} 21. Ke2 {[%clk 0:02:01.1]} 21... a5 {[%clk 0:01:53.8]} 22. a3 {[%clk
0:02:00.5]} 22... fxe4 {[%clk 0:01:36.4]} 23. fxe4 {[%clk 0:01:58.9]} 23... Bg4+
{[%clk 0:01:30.4]} 24. Nf3 {[%clk 0:01:59.2]} 24... Nc6 {[%clk 0:01:29.9]} 25.
Kf2 {[%clk 0:01:53.2]} 25... Re8 {[%clk 0:01:23.2]} 26. Nd2 {[%clk 0:01:46.1]}
26... Nd4 {[%clk 0:01:17.9]} 27. c3 {[%clk 0:01:37.8]} 27... Nc6 {[%clk
0:01:12.4]} 28. Kg3 {[%clk 0:01:33.3]} 28... h5 {[%clk 0:01:11.7]} 29. Bf4
{[%clk 0:01:26.7]} 29... Rd3+ {[%clk 0:01:09.4]} 30. Nf3 {[%clk 0:01:21.6]}
30... Rf8 {[%clk 0:01:00.6]} 31. Rd1 {[%clk 0:01:17.9]} 31... Rfd8 {[%clk
0:00:59.2]} 32. Rde1 {[%clk 0:01:10.7]} 32... a4 {[%clk 0:00:56.4]} 33. e5
{[%clk 0:01:04.8]} 33... Ne7 {[%clk 0:00:56.1]} 34. Bg5 {[%clk 0:01:01.4]} 34...
Nf5+ {[%clk 0:00:54.4]} 35. Kf2 {[%clk 0:01:01.9]} 35... Rf8 {[%clk 0:00:45.5]}
36. e6 {[%clk 0:00:50.1]} 36... Re8 {[%clk 0:00:29.4]} 37. Re5 {[%clk
0:00:39.6]} 37... g6 {[%clk 0:00:24.8]} 38. Rhe1 {[%clk 0:00:36]} 38... Ne7
{[%clk 0:00:22.2]} 39. Nh2 {[%clk 0:00:27.3]} 39... Bf5 {[%clk 0:00:20.4]} 40.
Nf1 {[%clk 0:00:26.7]} 40... Rd6 {[%clk 0:00:16.1]} 41. R5e2 {[%clk 0:00:19.8]}
41... Nc6 {[%clk 0:00:14.3]} 42. e7 {[%clk 0:00:18.9]} 42... Kd7 {[%clk
0:00:14.3]} 43. Ng3 {[%clk 0:00:17.9]} 43... Bg4 {[%clk 0:00:13.2]} 44. Re3
{[%clk 0:00:17]} 44... Re6 {[%clk 0:00:12.4]} 45. Ne4 {[%clk 0:00:17.7]} 45...
R8xe7 {[%clk 0:00:02.4]} 46. Bxe7 {[%clk 0:00:14.5]} 46... Nxe7 {[%clk
0:00:02.6]} 47. Ng5 {[%clk 0:00:11.6]} 47... Rf6+ {[%clk 0:00:02]} 48. Kg1
{[%clk 0:00:11.6]} 48... Nf5 {[%clk 0:00:02.9]} 49. Re8 {[%clk 0:00:10.9]} 49...
Rd6 {[%clk 0:00:03.2]} 50. Nf7 {[%clk 0:00:10.1]} 50... Rd2 {[%clk 0:00:02.9]}
51. Rd8+ {[%clk 0:00:10.6]} 51... Kc6 {[%clk 0:00:02.7]} 52. Rxd2 {[%clk
0:00:11.5]} 52... c4 {[%clk 0:00:01.4]} 53. Ne5+ {[%clk 0:00:12.4]} 1-0